bitfinex-derivatives/quotes_SOLF0:USTF0_20241027
["timestamp","ask_amount","ask_price","bid_price","bid_amount"]
[1729990839927,7.0546,170.58,170.55,2.935]
[1729990840220,15.1536611,170.58,170.55,2.935]
[1729990840725,4.12,170.58,170.56,2.9347]
[1729990840922,4.12,170.58,170.55,8.0990611]
[1729990841227,4.12,170.58,170.56,2.9347]
[1729990842333,11.0337611,170.57,170.54,2.9351]
[1729990843539,2.9351,170.55,170.52,5.5433]
[1729990843739,8.0990611,170.56,170.52,2.6078]
[1729990844140,11.0340611,170.56,170.53,2.9352]
[1729990844342,8.0990611,170.56,170.52,1.302]
[1729990844636,2.9352,170.55,170.52,1.302]
[1729990844841,4.12,170.54,170.52,1.302]
[1729990849746,4.12,170.54,170.52,4.2375]
[1729990850547,1.4648,170.64,170.52,1.302]
[1729990850846,11.0337611,170.57,170.53,2.9352]
[1729990851038,4.12,170.56,170.52,9.4010611]
[1729990851239,4.12,170.56,170.54,2.9352]
[1729990852746,4.12,170.55,170.53,8.0990611]
[1729990853245,4.12,170.55,170.54,2.9352]
[1729990853634,2.9345,170.59,170.54,2.9352]
[1729990853833,2.9345,170.59,170.52,2.5852]
[1729990853834,4.12,170.58,170.57,2.9347]
[1729990857645,4.12,170.58,170.56,2.9348]
[1729990858745,4.12,170.58,170.55,8.0990611]
[1729990859046,4.12,170.58,170.57,2.9347]
[1729990861150,1.2888,170.64,170.56,8.0990611]
[1729990861345,57.02,170.65,170.59,2.9342]
[1729990861346,8.0990611,170.62,170.59,2.9342]
[1729990862244,7.0537,170.63,170.59,2.9342]
[1729990862550,4.12,170.62,170.59,8.0990611]
[1729990863054,4.12,170.62,170.6,2.934]
[1729990866750,12.2190611,170.62,170.6,2.934]
[1729990866952,12.2190611,170.62,170.59,2.9343]
[1729990867346,11.0332611,170.6,170.52,2.5852]
[1729990867548,8.0990611,170.58,170.55,2.9349]
[1729990867849,12.2190611,170.58,170.55,2.9349]
[1729990868354,8.0990611,170.56,170.52,1.302]
[1729990869163,8.0990611,170.56,170.53,2.9352]
[1729990870448,4.12,170.58,170.5,2.9358]
[1729990870449,2.9352,170.54,170.5,2.9358]
[1729990870758,4.12,170.54,170.48,1.2261]
[1729990870948,4.12,170.54,170.51,2.9356]
[1729990871356,8.0990611,170.53,170.48,9.3251611]
[1729990872360,8.0990611,170.53,170.5,2.9357]
[1729990872555,8.0990611,170.51,170.47,1.2489]
[1729990872751,4.12,170.5,170.47,1.2489]
[1729990872958,4.12,170.5,170.47,4.1851]
[1729990873263,4.12,170.5,170.47,1.2489]
[1729990873761,4.12,170.5,170.48,2.9361]
[1729990874455,4.12,170.5,170.49,2.936]
[1729990887157,4.12,170.5,170.48,2.9362]
[1729990896774,4.12,170.5,170.47,2.9364]
[1729990899775,7.0559,170.5,170.45,2.9366]
[1729990900077,7.0559,170.5,170.45,11.0356611]
[1729990902170,7.0559,170.5,170.46,2.9365]
[1729990918284,57.06,170.59,170.45,8.0990611]
[1729990918478,11.0341611,170.55,170.5,2.9357]
[1729990918683,4.12,170.54,170.49,8.0990611]
[1729990919087,4.12,170.54,170.51,2.9356]
[1729990919394,8.0990611,170.52,170.44,3.88024127]
[1729990919591,8.0990611,170.5,170.45,1.46834134]
[1729990919791,4.12,170.49,170.46,2.9364]
[1729990922983,8.0990611,170.47,170.43,1.2532]
[1729990923187,4.12,170.49,170.43,1.2532]
[1729990923395,8.0990611,170.48,170.43,1.2532]
[1729990923889,8.0990611,170.48,170.44,2.9368]
[1729990924592,7.056,170.49,170.44,2.9368]
[1729990924795,15.1550611,170.49,170.44,2.9368]
[1729990924991,2.936,170.49,170.45,2.9367]
[1729990925196,2.936,170.49,170.43,1.2532]
[1729990925197,4.12,170.48,170.46,8.0990611]
[1729990925394,4.12,170.47,170.46,8.0990611]
[1729990925699,4.12,170.47,170.46,11.0356611]
[1729990927098,1.2343,170.54,170.49,2.9359]
[1729990927294,4.12,170.53,170.49,2.9359]
[1729990927607,8.0990611,170.54,170.49,8.0990611]
[1729990927608,4.12,170.52,170.49,8.0990611]
[1729990927803,4.12,170.52,170.49,11.0350611]
[1729990928002,4.12,170.52,170.49,8.0990611]
[1729990928400,4.12,170.52,170.5,2.9359]
[1729990929106,4.12,170.52,170.49,2.936]
[1729990929409,4.12,170.52,170.48,8.0990611]
[1729990931413,4.12,170.52,170.48,11.0351611]
[1729990933913,4.12,170.52,170.48,2.9361]
[1729990934108,4.12,170.52,170.48,11.0351611]
[1729990935107,4.12,170.52,170.49,1.46824425]
[1729990935406,4.12,170.52,170.48,11.0351611]
[1729990935612,4.12,170.52,170.49,1.46822353]
[1729990935914,4.12,170.52,170.5,1.46822353]
[1729990936212,11.0342611,170.55,170.5,11.0349611]
[1729990936411,4.12,170.52,170.51,1.4681898]
[1729990936609,4.12,170.52,170.5,8.0990611]
[1729990936801,4.12,170.52,170.43,1.2532]
[1729990937003,4.12,170.52,170.47,8.0990611]
[1729990937211,2.9357,170.51,170.48,5.36298461]
[1729990937508,2.9357,170.51,170.47,2.9364]
[1729990937509,2.9357,170.51,170.49,1.46821618]
[1729990937705,2.9357,170.51,170.47,11.0354611]
[1729990937906,15.1546611,170.52,170.48,1.4684103]
[1729990938105,15.1546611,170.52,170.49,1.4684103]
[1729990938301,12.2190611,170.52,170.47,8.0990611]
[1729990938514,2.9359,170.5,170.48,1.46839813]
[1729990938701,2.9359,170.5,170.49,1.46839813]
[1729990940113,2.9359,170.5,170.46,2.9365]
[1729990940305,8.0990611,170.51,170.47,5.36612669]
[1729990940508,2.9362,170.49,170.48,1.46850535]
[1729990943319,11.0352611,170.49,170.48,1.46850535]
[1729990943522,2.9364,170.47,170.44,11.0358611]
[1729990943712,4.12,170.46,170.45,5.36656694]
[1729990943915,4.12,170.46,170.44,11.0358611]
[1729990944109,4.12,170.46,170.45,5.36666032]
[1729990946618,4.12,170.46,170.45,1.46861969]
[1729990951227,4.12,170.46,170.45,1.46864579]
[1729990951423,4.12,170.46,170.45,1.46864427]
[1729990954928,4.12,170.46,170.44,8.0990611]
[1729990955134,4.12,170.46,170.45,1.46865797]
[1729990955625,4.12,170.46,170.44,8.0990611]
[1729990962035,4.12,170.46,170.45,8.0990611]
[1729990962635,4.12,170.47,170.46,2.9364]
[1729990962830,4.12,170.48,170.47,8.0990611]
[1729990964339,4.12,170.49,170.47,11.0353611]
[1729990964542,4.12,170.49,170.48,8.0990611]
[1729990992350,4.12,170.49,170.43,1.2532]
[1729990992551,4.12,170.49,170.45,8.0990611]
[1729990993357,2.9363,170.48,170.45,8.0990611]
[1729990995455,8.0990611,170.48,170.31,57.06]
[1729990995656,8.0990611,170.48,170.42,13.27382231]
[1729990995861,4.12,170.49,170.44,8.0990611]
[1729990996162,4.12,170.49,170.45,8.0990611]
[1729990996552,2.9365,170.47,170.45,8.0990611]
[1729990997561,2.9365,170.47,170.44,8.0990611]
[1729990998359,2.9367,170.46,170.43,8.0990611]
[1729990998556,4.12,170.45,170.43,8.0990611]
[1729991000254,2.9367,170.46,170.43,8.0990611]
[1729991000463,4.12,170.45,170.43,8.0990611]
[1729991002161,4.12,170.45,170.44,8.0990611]
[1729991005362,4.12,170.45,170.44,11.0359611]
[1729991006576,4.12,170.45,170.44,16.2129267]
[1729991006778,4.12,170.45,170.44,17.68169915]
[1729991006978,4.12,170.45,170.44,9.58263805]
[1729991007180,4.12,170.45,170.44,17.68169915]
[1729991009885,4.12,170.45,170.44,9.58263805]
[1729991010076,4.12,170.45,170.44,17.68169915]
[1729991010272,4.12,170.45,170.44,11.0359611]
[1729991010480,4.12,170.45,170.44,17.6835932]
[1729991012789,4.12,170.47,170.44,17.6835932]
[1729991012989,4.12,170.47,170.46,8.0990611]
[1729991018791,4.12,170.47,170.4,1.2137]
[1729991019000,2.9367,170.46,170.43,8.0990611]
[1729991019295,2.9367,170.46,170.44,5.17991209]
[1729991019495,2.9367,170.46,170.43,8.0990611]
[1729991019698,2.9367,170.46,170.44,5.1800639]
[1729991019898,2.9367,170.46,170.43,8.0990611]
[1729991020098,2.9367,170.46,170.44,5.18006846]
[1729991020298,2.9367,170.46,170.43,8.0990611]
[1729991020497,2.9367,170.46,170.44,5.17997192]
[1729991020699,2.9367,170.46,170.43,8.0990611]
[1729991020992,2.9367,170.46,170.44,5.17995062]
[1729991021198,2.9367,170.46,170.43,8.0990611]
[1729991025605,2.9367,170.46,170.44,8.0990611]
[1729991030707,4.12,170.47,170.44,8.0990611]
[1729991030708,7.0564,170.47,170.44,8.0990611]
[1729991031006,8.0990611,170.52,170.46,11.0355611]
[1729991031206,2.9361,170.49,170.48,8.0990611]
[1729991034513,120.27520774,170.54,170.48,8.0990611]
[1729991034708,4.12,170.53,170.5,8.0990611]
[1729991035410,2.9356,170.52,170.5,8.0990611]
[1729991037616,123.21040774,170.54,170.51,8.0990611]
[1729991037914,4.12,170.53,170.52,8.0990611]
[1729991039315,7.0554,170.53,170.52,8.0990611]
[1729991041417,4.12,170.53,170.52,8.0990611]
[1729991042414,4.12,170.54,170.52,8.0990611]
[1729991042619,4.12,170.54,170.53,8.0990611]
[1729991042811,1.2092,170.64,170.57,2.9346]
[1729991042812,2.934,170.61,170.57,2.9346]
[1729991043115,4.12,170.6,170.58,8.0990611]
[1729991043307,4.12,170.59,170.58,8.0990611]
[1729991044306,7.0543,170.59,170.58,8.0990611]
[1729991045919,2.9343,170.59,170.58,8.0990611]
[1729991046120,7.0343,170.59,170.58,8.0990611]
[1729991048617,8.0990611,170.63,170.58,8.0990611]
[1729991048925,4.1,170.62,170.59,8.0990611]
[1729991049321,2.9341,170.61,170.59,8.0990611]
[1729991050113,4.1,170.62,170.59,8.0990611]
[1729991050318,2.9338,170.63,170.61,8.0990611]
[1729991050626,4.1,170.62,170.59,2.9343]
[1729991051214,2.9338,170.63,170.59,2.9343]
[1729991051415,59.9933,170.65,170.62,8.0990611]
[1729991051620,59.9933,170.65,170.64,8.0990611]
[1729991051820,64.0933,170.65,170.64,8.0990611]
[1729991052418,57.06,170.65,170.64,8.0990611]
[1729991052613,61.16,170.65,170.64,8.0990611]
[1729991052817,61.16,170.65,170.46,23.503]
[1729991052818,4.1,170.65,170.57,4.1]
[1729991053019,4.1,170.65,170.64,11.0325611]
[1729991054123,4.1,170.66,170.64,11.0325611]
[1729991054322,4.1,170.66,170.65,8.0990611]
[1729991055228,2.9334,170.65,170.59,2.9342]
[1729991055430,4.1,170.66,170.53,78.87979565]
[1729991055725,8.0990611,170.65,170.6,8.0990611]
[1729991057235,2.9338,170.63,170.6,8.0990611]
[1729991057423,4.1,170.62,170.6,8.0990611]
[1729991058638,4.1,170.62,170.61,8.0990611]
[1729991059231,4.1,170.62,170.61,11.0330611]
[1729991060623,4.1,170.64,170.61,8.0990611]
[1729991060823,4.1,170.64,170.63,11.0325611]
[1729991061432,4.1,170.66,170.63,11.0325611]
[1729991061627,4.1,170.66,170.65,8.0990611]
[1729991064940,2.4874,170.74,170.65,8.0990611]
[1729991065147,4.1,170.7,170.69,8.0990611]
[1729991069248,2.9323,170.71,170.68,2.9327]
[1729991069456,4.1,170.7,170.67,2.9329]
[1729991069750,4.1,170.7,170.69,8.0990611]
[1729991071747,59.9716,170.75,170.71,2.9322]
[1729991071942,4.1,170.74,170.73,8.0990611]
[1729991072358,57.04,170.75,170.73,8.0990611]
[1729991072544,57.04,170.75,170.74,8.0990611]
[1729991072751,4.1,170.75,170.74,8.0990611]
[1729991074361,4.1,170.75,170.74,11.0307611]
[1729991076154,2.9311,170.78,170.74,11.0307611]
[1729991076354,4.1,170.77,170.76,8.0990611]
[1729991083263,2.9317,170.75,170.71,2.9322]
[1729991083560,4.1,170.77,170.62,3.6371]
[1729991083764,2.9321,170.72,170.71,8.0990611]
[1729991084058,4.1,170.72,170.71,8.0990611]
[1729991100376,7.0316,170.75,170.71,11.0313611]
[1729991100572,4.1,170.75,170.73,8.0990611]
[1729991101863,4.1,170.75,170.72,8.0990611]
[1729991102269,2.9317,170.74,170.71,2.9323]
[1729991102466,2.9317,170.74,170.63,4.1]
[1729991102467,4.1,170.75,170.69,8.0990611]
[1729991103471,2.9322,170.72,170.69,8.0990611]
[1729991103776,4.1,170.71,170.69,8.0990611]
[1729991107283,2.9324,170.7,170.69,8.0990611]
[1729991108282,7.0323,170.71,170.69,8.0990611]
[1729991109081,4.1,170.71,170.62,3.6371]
[1729991109278,4.1,170.71,170.67,8.0990611]
[1729991109773,4.1,170.71,170.65,8.0990611]
[1729991109774,12.1990611,170.71,170.65,8.0990611]
[1729991110274,12.1990611,170.71,170.64,8.0990611]
[1729991110275,8.0990611,170.69,170.64,8.0990611]
[1729991110975,8.0990611,170.68,170.55,3.5985]
[1729991111183,4.1,170.67,170.55,7.6985]
[1729991111387,4.1,170.67,170.62,8.0990611]
[1729991111680,4.1,170.67,170.55,7.6985]
[1729991111681,7.033,170.67,170.66,8.0990611]
[1729991115384,4.1,170.67,170.66,8.0990611]
[1729991116387,4.1,170.68,170.66,8.0990611]
[1729991116583,4.1,170.68,170.67,8.0990611]
[1729991118988,2.933,170.67,170.66,8.0990611]
[1729991119381,4.1,170.68,170.59,4.1]
[1729991119685,2.9333,170.65,170.64,8.0990611]
[1729991119881,4.1,170.68,170.64,8.0990611]
[1729991120287,8.0990611,170.66,170.57,1.46739274]
[1729991120588,8.0990611,170.66,170.6,8.0990611]
[1729991120589,2.9335,170.64,170.6,8.0990611]
[1729991120894,2.9335,170.64,170.6,11.0331611]
[1729991121091,4.1,170.63,170.6,11.0331611]
[1729991121293,7.0337,170.63,170.6,11.0331611]
[1729991123695,7.0337,170.63,170.61,8.0990611]
[1729991123894,4.1,170.63,170.61,8.0990611]
[1729991125992,4.1,170.63,170.6,8.0990611]
[1729991126194,12.1990611,170.63,170.52,4.1]
[1729991126497,12.1990611,170.63,170.58,8.0990611]
[1729991126800,2.934,170.61,170.58,8.0990611]
[1729991126992,8.0990611,170.6,170.53,1.46782087]
[1729991127191,4.1,170.59,170.55,8.0990611]
[1729991128289,2.9346,170.58,170.55,8.0990611]
[1729991129500,4.1,170.59,170.55,8.0990611]
[1729991129695,7.0344,170.59,170.55,11.0340611]
[1729991131598,7.0344,170.59,170.55,2.935]
[1729991131806,7.0344,170.59,170.55,11.0340611]
[1729991134106,7.0344,170.59,170.57,8.0990611]
[1729991135406,7.0344,170.59,170.56,8.0990611]
[1729991136007,4.1,170.59,170.56,8.0990611]
[1729991136206,4.1,170.58,170.57,8.0990611]
[1729991136400,4.1,170.59,170.57,8.0990611]
[1729991136706,4.1,170.59,170.58,8.0990611]
[1729991144712,4.1,170.59,170.58,11.0335611]
[1729991145108,8.0990611,170.64,170.58,8.0990611]
[1729991145420,4.1,170.61,170.6,8.0990611]
[1729991146415,4.1,170.61,170.6,11.0331611]
[1729991148712,4.1,170.62,170.61,2.9338]
[1729991148922,4.1,170.62,170.61,11.0328611]
[1729991153223,8.0990611,170.67,170.61,8.0990611]
[1729991153420,4.1,170.66,170.63,8.0990611]
[1729991153620,4.1,170.65,170.63,8.0990611]
[1729991153918,8.0990611,170.69,170.63,8.0990611]
[1729991154115,4.1,170.68,170.63,8.0990611]
[1729991154320,2.9331,170.66,170.63,8.0990611]
[1729991154621,4.1,170.68,170.63,8.0990611]
[1729991155125,2.9334,170.65,170.63,8.0990611]
[1729991155325,4.1,170.64,170.63,8.0990611]
[1729991155518,7.0335,170.64,170.61,11.0330611]
[1729991156623,2.9337,170.63,170.6,2.9341]
[1729991156920,2.9337,170.63,170.6,11.0331611]
[1729991157113,2.9337,170.63,170.6,2.9341]
[1729991157314,2.9337,170.63,170.6,11.0331611]
[1729991157513,7.0335,170.64,170.6,11.0331611]
[1729991157721,4.1,170.64,170.58,2.5864]
[1729991157921,4.1,170.64,170.61,8.0990611]
[1729991158127,2.9337,170.63,170.61,8.0990611]
[1729991158716,4.1,170.64,170.61,8.0990611]
[1729991158918,7.0335,170.64,170.61,8.0990611]
[1729991160327,7.0335,170.64,170.62,8.0990611]
[1729991160928,2.9333,170.65,170.63,8.0990611]
[1729991161228,4.1,170.66,170.64,8.0990611]
[1729991161628,4.1,170.66,170.64,11.0325611]
[1729991165032,2.4837,170.71,170.65,8.0990611]
[1729991165232,7.0325,170.7,170.67,8.0990611]
[1729991165423,4.1,170.7,170.67,8.0990611]
[1729991166232,2.9326,170.69,170.67,8.0990611]
[1729991167835,7.0325,170.7,170.67,11.0319611]
[1729991169240,7.0325,170.7,170.67,8.0990611]
[1729991171452,57.0,170.72,170.68,8.0990611]
[1729991171739,4.1,170.72,170.71,8.0990611]
[1729991175135,4.1,170.72,170.7,8.0990611]
[1729991175330,7.0321,170.72,170.7,8.0990611]
[1729991176338,2.9321,170.72,170.7,8.0990611]
[1729991176637,9.3268611,170.76,170.7,8.0990611]
[1729991176844,2.932,170.73,170.7,8.0990611]
[1729991179040,4.1,170.72,170.7,8.0990611]
[1729991180442,4.1,170.72,170.71,8.0990611]
[1729991180943,4.1,170.74,170.71,8.0990611]
[1729991181141,4.1,170.74,170.73,8.0990611]
[1729991184042,2.9314,170.77,170.73,8.0990611]
[1729991184234,4.12,170.76,170.74,8.0990611]
[1729991185343,4.12,170.76,170.74,11.0307611]
[1729991185743,4.12,170.76,170.75,8.0990611]
[1729991187245,4.12,170.76,170.74,1.80848272]
[1729991187549,4.12,170.76,170.74,9.90754382]
[1729991188342,4.12,170.76,170.74,1.80848272]
[1729991188643,4.12,170.76,170.74,9.90754382]
[1729991188848,2.9312,170.77,170.74,9.90754382]
[1729991189048,4.12,170.76,170.74,9.90754382]
[1729991191851,2.9312,170.77,170.74,9.90754382]
[1729991192054,4.12,170.76,170.74,9.90754382]
[1729991198263,4.12,170.76,170.66,4.12]
[1729991198467,4.12,170.76,170.71,2.9321]
[1729991198468,2.9316,170.75,170.71,2.9321]
[1729991199562,12.2190611,170.76,170.7,8.0990611]
[1729991199763,2.9319,170.74,170.7,11.0314611]
[1729991209466,2.9318,170.74,170.7,11.0314611]
[1729991210072,2.9321,170.72,170.69,11.0316611]
[1729991210368,4.12,170.72,170.69,11.0316611]
[1729991218869,4.12,170.72,170.69,2.9326]
[1729991219063,4.12,170.72,170.69,11.0316611]
[1729991221973,4.12,170.72,170.71,8.0990611]
[1729991222170,58.2919,170.81,170.71,8.0990611]
[1729991222371,8.0990611,170.79,170.74,8.0990611]
[1729991223171,2.9315,170.76,170.74,8.0990611]
[1729991223381,4.1,170.75,170.73,8.0990611]
[1729991224378,7.0317,170.75,170.73,8.0990611]
[1729991226276,4.1,170.75,170.73,8.0990611]
[1729991226678,4.1,170.75,170.74,8.0990611]
[1729991228285,4.1,170.75,170.74,11.0307611]
[1729991229679,4.1,170.76,170.74,11.0307611]
[1729991229872,2.9317,170.75,170.71,2.9321]
[1729991230078,2.9317,170.75,170.64,2.4885]
[1729991230079,8.0990611,170.75,170.7,8.0990611]
[1729991230280,8.0990611,170.75,170.65,4.1]
[1729991230582,8.0990611,170.75,170.69,8.0990611]
[1729991232485,8.0990611,170.73,170.64,2.4885]
[1729991232676,12.1990611,170.72,170.67,8.0990611]
[1729991232875,4.1,170.71,170.67,8.0990611]
[1729991233277,2.9324,170.7,170.67,8.0990611]
[1729991233478,4.1,170.71,170.67,8.0990611]
[1729991233785,4.1,170.71,170.68,8.0990611]
[1729991233984,7.0323,170.71,170.68,8.0990611]
[1729991234286,4.1,170.71,170.7,8.0990611]
[1729991234886,4.1,170.72,170.7,8.0990611]
[1729991245196,4.1,170.72,170.7,11.0314611]
[1729991248890,4.1,170.72,170.71,11.0313611]
[1729991251691,59.5055,170.81,170.72,2.932]
[1729991251892,59.5055,170.81,170.73,8.0990611]
[1729991251893,8.0990611,170.78,170.73,8.0990611]
[1729991252598,2.9316,170.75,170.73,8.0990611]
[1729991252996,7.0316,170.75,170.73,8.0990611]
[1729991255102,2.9321,170.73,170.69,2.9326]
[1729991255403,4.1,170.75,170.71,8.0990611]
[1729991257400,2.9318,170.74,170.71,11.0312611]
[1729991257804,2.9318,170.74,170.71,2.9322]
[1729991261504,2.9322,170.72,170.7,8.0990611]
[1729991262212,2.9322,170.72,170.68,11.0318611]
[1729991262408,4.1,170.71,170.68,11.0318611]
[1729991264317,4.1,170.71,170.69,6.69719051]
[1729991264515,4.1,170.71,170.68,11.0318611]
[1729991264706,4.1,170.71,170.69,6.69754521]
[1729991264911,4.1,170.71,170.68,11.0318611]
[1729991265112,4.1,170.71,170.69,6.69754521]
[1729991265409,4.1,170.71,170.68,11.0318611]
[1729991265610,4.1,170.71,170.69,6.6981467]
[1729991265814,4.1,170.71,170.68,11.0318611]
[1729991266008,4.1,170.71,170.69,6.69814063]
[1729991266209,4.1,170.71,170.68,11.0318611]
[1729991266411,4.1,170.71,170.69,6.69823789]
[1729991266612,4.1,170.71,170.68,11.0318611]
[1729991266915,4.1,170.71,170.69,6.69873923]
[1729991267218,4.1,170.71,170.68,11.0318611]
[1729991267519,4.1,170.71,170.69,6.69934488]
[1729991267713,4.1,170.71,170.68,11.0318611]
[1729991267919,4.1,170.71,170.69,6.69937218]
[1729991268222,4.1,170.71,170.68,11.0318611]
[1729991268624,4.1,170.71,170.69,6.69943258]
[1729991268915,4.1,170.71,170.68,11.0318611]
[1729991269120,4.1,170.71,170.69,6.69940529]
[1729991269323,4.1,170.71,170.68,11.0318611]
[1729991269514,4.1,170.71,170.69,6.69945969]
[1729991269715,4.1,170.71,170.68,11.0318611]
[1729991269921,4.1,170.71,170.69,6.69945969]
[1729991270122,4.1,170.71,170.68,11.0318611]
[1729991270324,4.1,170.71,170.69,6.69945969]
[1729991270515,4.1,170.71,170.68,11.0318611]
[1729991270716,4.1,170.71,170.69,6.69948115]
[1729991270917,4.1,170.71,170.68,11.0318611]
[1729991271117,4.1,170.71,170.69,6.69950391]
[1729991271317,4.1,170.71,170.68,11.0318611]
[1729991271527,4.1,170.71,170.69,6.69954002]
[1729991271726,4.1,170.71,170.68,11.0318611]
[1729991271921,4.1,170.71,170.69,6.69951878]
[1729991272122,4.1,170.71,170.68,11.0318611]
[1729991272422,4.1,170.71,170.69,6.69951878]
[1729991272626,4.1,170.71,170.68,11.0318611]
[1729991272827,4.1,170.71,170.69,6.69957112]
[1729991273124,4.1,170.71,170.68,11.0318611]
[1729991273423,4.1,170.71,170.69,6.69962941]
[1729991273624,4.1,170.71,170.68,11.0318611]
[1729991273925,4.1,170.71,170.69,6.69959693]
[1729991274129,7.0324,170.71,170.67,11.0318611]
[1729991274424,7.0324,170.71,170.68,5.23292287]
[1729991274626,7.0324,170.71,170.67,11.0318611]
[1729991274826,7.0324,170.71,170.68,5.23295365]
[1729991275024,7.0324,170.71,170.67,11.0318611]
[1729991275624,7.0324,170.71,170.68,6.69966206]
[1729991275825,7.0324,170.71,170.67,11.0318611]
[1729991276023,7.0324,170.71,170.68,6.6996604]
[1729991276226,7.0324,170.71,170.67,2.9328]
[1729991277925,7.0324,170.71,170.68,6.69919962]
[1729991278129,7.0324,170.71,170.67,2.9328]
[1729991278330,7.0324,170.71,170.68,6.6991017]
[1729991278529,7.0324,170.71,170.67,2.9328]
[1729991278728,7.0324,170.71,170.68,6.69909193]
[1729991278929,7.0324,170.71,170.67,2.9328]
[1729991279126,7.0324,170.71,170.68,6.69907761]
[1729991279329,7.0324,170.71,170.67,2.9328]
[1729991279530,7.0324,170.71,170.68,6.69902073]
[1729991279826,7.0324,170.71,170.67,2.9328]
[1729991280032,7.0324,170.71,170.68,6.69896613]
[1729991280228,2.9328,170.68,170.65,2.9332]
[1729991280531,4.1,170.71,170.66,6.69918494]
[1729991280532,8.0990611,170.69,170.66,6.69918494]
[1729991280729,8.0990611,170.69,170.63,9.2893611]
[1729991280730,8.0990611,170.69,170.64,8.0990611]
[1729991280936,2.9328,170.68,170.65,6.69966455]
[1729991281130,2.9328,170.68,170.66,6.69966455]
[1729991281342,2.9328,170.68,170.64,11.0324611]
[1729991281633,2.9328,170.68,170.65,6.69893393]
[1729991281835,2.9328,170.68,170.66,6.69893393]
[1729991282039,2.9328,170.68,170.64,11.0324611]
[1729991282331,4.1,170.67,170.65,6.69840645]
[1729991282537,4.1,170.67,170.66,6.69840645]
[1729991287334,4.1,170.67,170.64,11.0324611]
[1729991287534,4.1,170.67,170.65,6.69642555]
[1729991287728,4.1,170.67,170.64,11.0324611]
[1729991287932,4.1,170.67,170.65,9.62972495]
[1729991288133,4.1,170.67,170.65,2.9333]
[1729991289037,4.1,170.67,170.65,11.0323611]
[1729991294245,4.1,170.67,170.66,5.22806377]
[1729991294441,4.1,170.67,170.66,6.69517992]
[1729991294643,4.1,170.67,170.66,1.46711615]
[1729991294844,4.1,170.67,170.65,11.0323611]
[1729991296047,4.1,170.67,170.65,2.9333]
[1729991304156,4.1,170.67,170.64,8.0990611]
[1729991304355,4.1,170.7,170.67,2.9328]
[1729991304555,4.1,170.7,170.68,8.0990611]
[1729991305054,4.1,170.7,170.68,11.0317611]
[1729991305457,4.1,170.71,170.68,11.0317611]
[1729991305847,4.1,170.71,170.68,8.0990611]
[1729991306054,4.1,170.71,170.7,11.0314611]
[1729991306248,4.1,170.72,170.69,8.0990611]
[1729991307347,4.1,170.72,170.69,11.0316611]
[1729991312062,4.1,170.72,170.69,2.9326]
[1729991312262,4.1,170.72,170.69,11.0316611]
[1729991315961,2.932,170.73,170.69,11.0316611]
[1729991316263,4.1,170.72,170.69,11.0316611]
[1729991347289,2.9327,170.69,170.63,1.1903]
[1729991347493,2.9327,170.69,170.64,14.7882819]
[1729991347688,4.1,170.68,170.65,6.6892208]
[1729991347887,4.1,170.68,170.64,8.0990611]
[1729991348091,4.1,170.68,170.65,6.68990144]
[1729991348392,4.1,170.68,170.64,8.0990611]
[1729991348584,4.1,170.68,170.65,6.68998365]
[1729991348791,4.1,170.68,170.65,2.9332]
[1729991349890,2.933,170.67,170.63,4.1239]
[1729991350085,2.933,170.67,170.64,6.69011588]
[1729991350386,15.1318611,170.68,170.64,2.9335]
[1729991351690,7.0328,170.68,170.65,8.0990611]
[1729991351888,7.0328,170.68,170.64,11.0325611]
[1729991355698,7.0328,170.68,170.64,2.9335]
[1729991355997,15.1318611,170.68,170.64,11.0325611]